bitfinex-derivatives/quotes_BNBF0:USTF0_20230901
["timestamp","ask_amount","ask_price","bid_price","bid_amount"]
[1693587510582,0.17052613,214.01,213.54,0.86074838]
[1693587510880,0.17052613,214.0,213.54,0.86074838]
[1693587511077,0.17052613,214.05,213.54,0.86074838]
[1693587511276,0.17052613,214.04,213.54,0.86074838]
[1693587511478,0.17052613,214.05,213.54,0.86074838]
[1693587511680,0.17052613,214.04,213.54,0.86074838]
[1693587511882,0.17052613,214.05,213.54,0.86074838]
[1693587512180,0.17052613,214.04,213.54,0.86074838]
[1693587512477,0.17052613,214.03,213.54,0.86074838]
[1693587512681,0.17052613,214.05,213.54,0.86074838]
[1693587512881,0.17052613,214.04,213.54,0.86074838]
[1693587513082,0.17052613,214.05,213.54,0.86074838]
[1693587513280,0.17052613,214.04,213.54,0.86074838]
[1693587513476,0.17052613,214.05,213.54,0.86074838]
[1693587513675,0.17052613,214.04,213.54,0.86074838]
[1693587513874,5.28328125,214.05,213.52,0.07662953]
[1693587514082,0.17052613,214.04,213.52,0.07662953]
[1693587514281,0.17052613,214.04,213.51,0.07662953]
[1693587514477,0.17052613,214.04,213.52,0.86048197]
[1693587514677,0.17052613,214.04,213.52,0.9371115]
[1693587514880,0.17052613,214.04,213.53,0.86048197]
[1693587516581,5.28328125,214.04,213.53,0.86048197]
[1693587516779,0.17052613,214.03,213.53,0.86048197]
[1693587519786,0.17052613,214.03,213.51,0.07662953]
[1693587519985,0.17052613,214.03,213.52,0.86045558]
[1693587520983,0.17052613,214.03,213.52,0.93708511]
[1693587521182,0.17052613,214.03,213.53,0.86045558]
[1693587522782,5.28328125,214.03,213.53,0.86045558]
[1693587522986,0.17052613,214.02,213.53,0.86045558]
[1693587524684,0.17052613,214.02,213.52,0.07662953]
[1693587524887,0.17052613,214.02,213.53,0.86046291]
[1693587525085,0.17052613,214.02,213.51,0.07662953]
[1693587525290,0.17052613,214.02,213.52,0.93709141]
[1693587525483,0.17052613,214.02,213.53,0.86046188]
[1693587525689,5.11275512,214.01,213.51,0.07662953]
[1693587525886,0.17052613,214.0,213.52,0.86045742]
[1693587526487,5.11275512,213.99,213.53,0.07662953]
[1693587526789,0.17052613,213.98,213.52,0.07662953]
[1693587527290,5.28328125,213.98,213.53,0.07662953]
[1693587527493,0.17052613,213.97,213.53,0.07662953]
[1693587527687,5.11275512,213.96,213.54,0.07662953]
[1693587527992,0.17052613,213.95,213.54,0.07662953]
[1693587529195,0.17052613,213.95,213.55,0.07662953]
[1693587529593,5.28328125,213.95,213.54,0.07662953]
[1693587529791,0.17052613,213.94,213.54,0.07662953]
[1693587530688,0.17052613,213.94,213.53,0.07662953]
[1693587530892,5.28328125,213.94,213.53,0.07662953]
[1693587531096,0.17052613,213.93,213.53,0.07662953]
[1693587531594,0.17052613,213.93,213.54,0.07662953]
[1693587531798,0.17052613,213.94,213.54,0.07662953]
[1693587531993,0.17052613,213.93,213.54,0.07662953]
[1693587532295,0.17052613,213.92,213.53,0.07662953]
[1693587532491,0.17052613,213.94,213.54,0.07662953]
[1693587532693,0.17052613,213.93,213.54,0.07662953]
[1693587532893,0.17052613,213.94,213.54,0.07662953]
[1693587533093,0.17052613,213.93,213.54,0.07662953]
[1693587533296,0.17052613,213.92,213.54,0.07662953]
[1693587533496,0.17052613,213.91,213.54,0.07662953]
[1693587533694,0.17052613,213.9,213.54,0.07662953]
[1693587533894,0.17052613,213.89,213.53,0.07662953]
[1693587534096,0.17052613,213.88,213.53,0.07662953]
[1693587534297,0.17052613,213.87,213.53,0.07662953]
[1693587534596,0.17052613,213.86,213.53,0.07662953]
[1693587534793,0.17052613,213.94,213.53,0.07662953]
[1693587534991,0.17052613,213.93,213.53,0.07662953]
[1693587535290,0.17052613,213.92,213.53,0.07662953]
[1693587535494,0.17052613,213.94,213.54,0.07662953]
[1693587535696,0.17052613,213.93,213.54,0.07662953]
[1693587535893,0.17052613,213.94,213.54,0.07662953]
[1693587536095,0.17052613,213.93,213.54,0.07662953]
[1693587536292,0.17052613,213.95,213.54,0.07662953]
[1693587536498,0.17052613,213.94,213.54,0.07662953]
[1693587536799,0.17052613,213.93,213.54,0.07662953]
[1693587536998,0.17052613,213.95,213.54,0.07662953]
[1693587537198,0.17052613,213.94,213.54,0.07662953]
[1693587537497,0.17052613,213.93,213.54,0.07662953]
[1693587537693,0.17052613,213.95,213.54,0.07662953]
[1693587537899,0.17052613,213.94,213.54,0.07662953]
[1693587538101,0.17052613,213.94,213.48,0.15325907]
[1693587538102,0.17052613,213.93,213.55,0.07662953]
[1693587538299,0.17052613,213.95,213.55,0.07662953]
[1693587538494,0.17052613,213.94,213.55,0.07662953]
[1693587538699,0.17052613,213.93,213.55,0.07662953]
[1693587538899,0.17052613,213.92,213.55,0.07662953]
[1693587539099,0.17052613,213.91,213.55,0.07662953]
[1693587539299,0.17052613,213.9,213.55,0.07662953]
[1693587539595,0.17052613,213.89,213.55,0.07662953]
[1693587539899,0.17052613,213.88,213.55,0.07662953]
[1693587540097,0.17052613,213.87,213.55,0.07662953]
[1693587540300,0.17052613,213.86,213.55,0.07662953]
[1693587540498,0.17052613,213.85,213.55,0.07662953]
[1693587540699,0.17052613,213.84,213.55,0.07662953]
[1693587540893,5.11275512,213.95,213.55,0.07662953]
[1693587541097,0.17207976,213.94,213.55,0.07662953]
[1693587544301,0.17207976,213.94,213.54,0.07662953]
[1693587544607,5.28483488,213.94,213.54,0.07662953]
[1693587544804,0.17207976,213.93,213.53,0.07662953]
[1693587545004,0.17207976,213.93,213.54,0.07662953]
[1693587545803,0.17207976,213.93,213.53,0.07662953]
[1693587547705,5.28483488,213.93,213.53,0.07662953]
[1693587548005,0.17207976,213.92,213.53,0.07662953]
[1693587565616,0.17207976,213.92,213.52,0.07662953]
[1693587566420,5.28483488,213.92,213.52,0.07662953]
[1693587566619,0.17207976,213.91,213.52,0.07662953]
[1693587571728,0.17207976,213.91,213.51,0.07662953]
[1693587572525,0.17207976,213.91,213.47,0.07662953]
[1693587572830,0.17207976,213.91,213.46,0.07662953]
[1693587573032,7.15785718,213.9,213.46,0.07662953]
[1693587573229,0.17207976,213.89,213.46,0.07662953]
[1693587573422,5.11275512,213.87,213.46,0.07662953]
[1693587573627,0.17207976,213.86,213.46,0.07662953]
[1693587573826,0.17207976,213.86,213.26,3.74827929]
[1693587573827,0.17207976,213.86,213.44,0.07662953]
[1693587574024,0.17207976,213.86,213.45,0.86076122]
[1693587574229,0.17207976,213.85,213.45,0.86076122]
[1693587574429,0.17207976,213.88,213.45,0.86076122]
[1693587574628,0.17207976,213.87,213.45,0.86076122]
[1693587574826,0.17207976,213.88,213.45,0.86076122]
[1693587575026,0.17207976,213.87,213.23,3.74827929]
[1693587575224,0.17207976,213.86,213.24,4.6090404]
[1693587575425,0.17207976,213.85,213.44,0.07669595]
[1693587575628,0.17207976,213.87,213.45,0.86076111]
[1693587575829,0.17207976,213.86,213.45,0.86076111]
[1693587576130,0.17207976,213.85,213.45,0.86076111]
[1693587576327,0.17207976,213.89,213.43,0.86076111]
[1693587576533,0.17207976,213.88,213.44,0.86075906]
[1693587576735,0.17207976,213.89,213.43,0.86075906]
[1693587576934,0.17207976,213.88,213.44,0.86075906]
[1693587577133,0.17207976,213.87,213.45,0.86075906]
[1693587577334,0.17207976,213.86,213.42,0.07664565]
[1693587577537,0.17207976,213.85,213.43,0.86075827]
[1693587577835,0.17207976,213.84,213.43,0.86075827]
[1693587578035,0.17207976,213.9,213.42,0.86075827]
[1693587578240,0.17207976,213.89,213.43,0.86075827]
[1693587578432,0.17207976,213.9,213.42,0.86075827]
[1693587578636,0.17207976,213.89,213.43,0.86075827]
[1693587578937,0.17207976,213.88,213.44,0.86075827]
[1693587579237,0.17207976,213.87,213.4,0.07664565]
[1693587579437,0.17207976,213.86,213.41,0.86078265]
[1693587579638,0.17207976,213.85,213.41,0.86078265]
[1693587579836,0.17207976,213.9,213.41,0.86078265]
[1693587580036,0.17207976,213.89,213.41,0.86078265]
[1693587580235,0.17207976,213.9,213.41,0.86078265]
[1693587580435,0.17207976,213.89,213.41,0.86078265]
[1693587580634,0.17207976,213.9,213.41,0.86078265]
[1693587580834,0.17207976,213.89,213.41,0.86078265]
[1693587581033,0.17207976,213.88,213.42,0.86078265]
[1693587581236,0.17207976,213.87,213.43,0.86078265]
[1693587581540,0.17207976,213.86,213.44,0.86078265]
[1693587581836,0.17207976,213.85,213.39,0.07664565]
[1693587582034,0.17207976,213.91,213.4,0.86078577]
[1693587582235,0.17207976,213.9,213.4,0.86078577]
[1693587582435,0.17207976,213.89,213.4,0.86078577]
[1693587582637,0.17207976,213.88,213.4,0.86078577]
[1693587582837,0.17207976,213.87,213.4,0.86078577]
[1693587583038,0.17207976,213.86,213.4,0.86078577]
[1693587583338,0.17207976,213.85,213.4,0.86078577]
[1693587583537,0.17207976,213.92,213.4,0.86078577]
[1693587583733,0.17207976,213.91,213.4,0.86078577]
[1693587583936,0.17207976,213.9,213.4,0.86078577]
[1693587584140,0.17207976,213.89,213.4,0.86078577]
[1693587584339,0.17207976,213.92,213.4,0.86078577]
[1693587584541,0.17207976,213.91,213.4,0.86078577]
[1693587584734,0.17207976,213.93,213.4,0.86078577]
[1693587584937,0.17207976,213.92,213.4,0.86078577]
[1693587585134,0.17207976,213.93,213.4,0.86078577]
[1693587585339,0.17207976,213.92,213.4,0.86078577]
[1693587585539,0.17207976,213.91,213.4,0.86078577]
[1693587585840,0.17207976,213.9,213.4,0.86078577]
[1693587586041,0.17207976,213.94,213.4,0.86078577]
[1693587586241,0.17207976,213.93,213.4,0.86078577]
[1693587586442,0.17207976,213.94,213.4,0.86078577]
[1693587586638,0.17207976,213.93,213.4,0.86078577]
[1693587586839,0.17207976,213.92,213.4,0.86078577]
[1693587587140,0.17207976,213.91,213.4,0.86078577]
[1693587587335,0.17207976,213.94,213.4,0.86078577]
[1693587587537,0.17207976,213.93,213.4,0.86078577]
[1693587587738,0.17207976,213.94,213.4,0.86078577]
[1693587587934,13.28666272,214.14,213.4,0.93743142]
[1693587587935,0.17207976,213.93,213.4,0.93743142]
[1693587588137,0.17207976,213.92,213.41,0.86078577]
[1693587588337,0.17207976,213.91,213.41,0.86078577]
[1693587588637,0.17207976,213.9,213.41,0.86078577]
[1693587588841,0.17207976,213.95,213.41,0.86078577]
[1693587589042,0.17207976,213.94,213.41,0.86078577]
[1693587589242,0.17207976,213.95,213.41,0.86078577]
[1693587589443,0.17207976,213.93,213.41,0.86078577]
[1693587589642,0.17207976,213.92,213.41,0.86078577]
[1693587589844,0.17207976,213.91,213.41,0.86078577]
[1693587590045,0.17207976,213.9,213.41,0.86078577]
[1693587590341,0.17207976,213.89,213.41,0.86078577]
[1693587590545,0.17207976,213.95,213.41,0.86078577]
[1693587590746,0.17207976,213.94,213.41,0.86078577]
[1693587591042,0.17207976,213.93,213.41,0.86078577]
[1693587591246,0.17207976,213.92,213.41,0.86078577]
[1693587591448,0.17207976,213.95,213.41,0.86078577]
[1693587591745,0.17207976,213.94,213.41,0.86078577]
[1693587591948,0.17207976,213.95,213.41,0.86078577]
[1693587592146,0.17207976,213.94,213.41,0.86078577]
[1693587592445,0.17207976,213.93,213.41,0.86078577]
[1693587592646,0.17207976,213.95,213.41,0.86078577]
[1693587592946,0.17207976,213.94,213.41,0.86078577]
[1693587593142,0.17207976,213.95,213.41,0.86078577]
[1693587593347,0.17207976,213.94,213.41,0.86078577]
[1693587593548,0.17207976,213.93,213.41,0.86078577]
[1693587593842,0.17207976,213.92,213.41,0.86078577]
[1693587594047,0.17207976,213.95,213.41,0.86078577]
[1693587594247,0.17207976,213.94,213.41,0.86078577]
[1693587594448,0.17207976,213.93,213.42,0.86078577]
[1693587594641,0.17207976,213.92,213.43,0.86078577]
[1693587594845,0.17207976,213.91,213.44,0.86078577]
[1693587595043,5.28233465,213.95,213.41,0.86078577]
[1693587595246,0.17207976,213.94,213.42,0.86083072]
[1693587595447,0.17207976,213.94,213.41,0.86083072]
[1693587595648,0.17207976,213.94,213.42,0.86083072]
[1693587595844,0.17207976,213.94,213.43,0.86083072]
[1693587596049,0.17207976,213.94,213.41,0.86083072]
[1693587596244,0.17207976,213.94,213.42,0.86083072]
[1693587596551,0.17207976,213.94,213.43,0.86083072]
[1693587596744,0.17207976,213.94,213.44,0.86083072]
[1693587596948,0.17207976,213.94,213.4,0.07664565]
[1693587597149,0.17207976,213.94,213.41,0.86083927]
[1693587597950,5.28233465,213.94,213.41,0.86083927]
[1693587598149,0.17207976,213.93,213.41,0.86083927]
[1693587598946,0.17207976,213.92,213.41,0.93748492]
[1693587599147,0.17207976,213.91,213.42,0.86083927]
[1693587599351,0.17207976,213.93,213.42,0.86083927]
[1693587599553,0.17207976,213.92,213.42,0.86083927]
[1693587599753,0.17207976,213.91,213.42,0.86083927]
[1693587600054,0.17207976,213.9,213.42,0.86083927]
[1693587600253,0.17207976,213.93,213.42,0.86083927]
[1693587600455,0.17207976,213.92,213.42,0.86083927]
[1693587602053,0.17207976,213.92,213.42,0.93748492]
[1693587602257,0.17207976,213.92,213.43,0.86083927]
[1693587603057,5.28233465,213.92,213.43,0.86083927]
[1693587603256,0.17207976,213.91,213.43,0.86083927]
[1693587604056,0.17207976,213.91,213.37,0.07664565]
[1693587604250,0.17207976,213.91,213.36,0.07664565]
[1693587604251,7.15435685,213.89,213.36,0.07664565]
[1693587604457,5.11025489,213.86,213.37,0.86109911]
[1693587604655,0.17207976,213.85,213.37,0.86109911]
[1693587605055,0.17207976,213.85,213.37,0.93774476]
[1693587605256,0.17207976,213.85,213.36,0.07664565]
[1693587605452,0.17207976,213.85,213.37,0.86110211]
[1693587605757,0.17207976,213.85,213.37,0.93774776]
[1693587605955,0.17207976,213.85,213.37,0.07664565]
[1693587606260,0.17207976,213.85,213.36,0.07664565]
[1693587606559,0.17207976,213.85,213.34,0.07664565]
[1693587606754,0.17207976,213.85,213.35,0.86117179]
[1693587606961,0.17207976,213.85,213.35,0.93781744]
[1693587607156,5.11025489,213.84,213.35,0.07664565]
[1693587607357,0.17207976,213.83,213.36,0.93781241]
[1693587607557,0.17207976,213.84,213.35,0.07664565]
[1693587607760,0.17207976,213.83,213.36,0.93781235]
[1693587607961,0.17207976,213.84,213.36,0.07664565]
[1693587608161,5.11025489,213.85,213.36,0.07664565]
[1693587608162,0.17207976,213.83,213.36,0.07664565]
[1693587608362,0.17207976,213.82,213.35,0.07664565]
[1693587608557,12.26461174,213.87,213.36,0.86114638]
[1693587608558,0.17207976,213.86,213.36,0.86114638]
[1693587608760,0.17207976,213.85,213.36,0.86114638]
[1693587608955,0.17207976,213.86,213.36,0.86114638]
[1693587609159,0.17207976,213.85,213.36,0.86114638]
[1693587609361,0.17207976,213.85,213.35,0.86114638]
[1693587609664,0.17207976,213.87,213.37,0.86114638]
[1693587609861,0.17207976,213.84,213.36,0.93779203]
[1693587610054,0.17207976,213.86,213.35,0.07664565]
[1693587610259,0.17207976,213.85,213.36,0.86112447]
[1693587610459,0.17207976,213.84,213.36,0.86112447]
[1693587610664,0.17207976,213.83,213.36,0.86112447]
[1693587610963,0.17207976,213.82,213.36,0.86112447]
[1693587611159,0.17207976,213.88,213.36,0.86112447]
[1693587611360,0.17207976,213.87,213.36,0.86112447]
[1693587611560,0.17207976,213.89,213.36,0.86112447]
[1693587611761,0.17207976,213.88,213.36,0.86112447]
[1693587611959,0.17207976,213.87,213.4,0.07664565]
[1693587612164,0.17207976,213.94,213.41,0.86112447]
[1693587612365,0.17207976,213.93,213.41,0.93777012]
[1693587612659,0.17207976,213.92,213.42,0.86112447]
[1693587612864,0.17207976,213.91,213.42,0.86112447]
[1693587613058,0.17207976,213.95,213.41,0.86112447]
[1693587613260,0.17207976,213.94,213.42,0.86112447]
[1693587613864,0.17207976,213.95,213.42,0.86112447]
[1693587614062,0.17207976,213.94,213.42,0.86112447]
[1693587614266,0.17207976,213.95,213.42,0.93777012]
[1693587614459,0.17207976,213.94,213.43,0.86112447]
[1693587614660,0.17207976,213.95,213.43,0.86112447]
[1693587614863,0.17207976,213.94,213.43,0.86112447]
[1693587615064,0.17207976,213.96,213.43,0.93777012]
[1693587615263,0.17207976,213.95,213.44,0.86112447]
[1693587615461,0.17207976,213.97,213.44,0.86112447]
[1693587615664,0.17207976,213.94,213.44,0.86112447]
[1693587615867,0.17207976,213.96,213.44,0.86112447]
[1693587616064,0.17207976,213.95,213.44,0.86112447]
[1693587616265,0.17207976,213.97,213.44,0.86112447]
[1693587616565,0.17207976,213.96,213.44,0.86112447]
[1693587616766,0.17207976,213.97,213.44,0.86112447]
[1693587617067,0.17207976,213.96,213.45,0.86112447]
[1693587617365,0.17207976,213.95,213.42,0.07664565]
[1693587617559,0.17207976,213.96,213.43,0.93744657]
[1693587617763,0.17207976,213.95,213.44,0.86080092]
[1693587617963,0.17207976,213.96,213.44,0.86080092]
[1693587618165,0.17207976,213.96,213.43,0.86080092]
[1693587618361,0.17207976,213.96,213.44,0.86080092]
[1693587618568,0.17207976,213.96,213.43,0.86080092]
[1693587619067,0.17207976,213.96,213.44,0.86080092]
[1693587619266,0.17207976,213.96,213.41,0.07664565]
[1693587619459,0.17207976,213.96,213.42,0.9374711]
[1693587619664,0.17207976,213.96,213.43,0.86082545]
[1693587619862,5.28233465,213.96,213.43,0.86082545]
[1693587620066,0.17207976,213.95,213.42,0.86082545]
[1693587620364,0.17207976,213.95,213.43,0.86082545]
[1693587620564,0.17207976,213.95,213.44,0.86082545]
[1693587620769,0.17207976,213.95,213.41,0.07664565]
[1693587621067,0.17207976,213.95,213.42,0.86083818]
[1693587621467,7.13322237,213.98,213.41,0.07650994]
[1693587621771,5.09515884,213.95,213.42,0.86083818]
[1693587621971,0.17207976,213.94,213.42,0.86083818]
[1693587622470,0.17207976,213.94,213.4,0.07650994]
[1693587622471,0.17207976,213.94,213.43,0.86083818]
[1693587622671,0.17207976,213.94,213.41,0.86083818]
[1693587622873,0.17207976,213.94,213.42,0.86086364]
[1693587623067,0.17207976,213.94,213.43,0.86086364]
[1693587623265,5.2672386,213.94,213.4,0.07650994]
[1693587623572,0.17207976,213.93,213.41,0.86085976]
[1693587625073,0.17207976,213.93,213.39,0.07650994]
[1693587625074,0.17207976,213.93,213.4,0.86085976]
[1693587625274,5.2672386,213.93,213.41,0.86085976]
[1693587625475,0.17207976,213.92,213.42,0.86085976]
[1693587625677,0.17207976,213.92,213.4,0.86085976]
[1693587625877,0.17207976,213.92,213.41,0.86085976]
[1693587626176,0.17207976,213.92,213.42,0.86085976]
[1693587626376,0.17207976,213.92,213.39,0.07650994]
[1693587626576,0.17207976,213.92,213.4,0.86088106]
[1693587626877,5.09515884,213.91,213.41,0.86088106]
[1693587627175,0.17207976,213.9,213.38,0.07650994]
[1693587627375,0.17207976,213.89,213.39,0.86088762]
[1693587627577,0.17207976,213.88,213.37,0.07650994]
[1693587627878,0.17207976,213.87,213.33,0.07650994]
[1693587628072,0.17207976,213.91,213.34,0.86114696]
[1693587628273,0.17207976,213.9,213.34,0.86114696]
[1693587628472,5.09515884,213.86,213.35,0.86114696]
[1693587628670,0.17207976,213.85,213.36,0.86114696]
[1693587628869,0.17207976,213.86,213.33,0.86114696]
[1693587629071,0.17207976,213.85,213.34,0.86114513]
[1693587629274,0.17207976,213.84,213.33,0.86114513]
[1693587629475,0.17207976,213.83,213.34,0.86114513]
[1693587629681,0.17207976,213.82,213.35,0.86114513]
[1693587629882,0.17207976,213.86,213.33,0.86114513]
[1693587630080,0.17207976,213.85,213.34,0.86114513]
[1693587630382,0.17207976,213.84,213.35,0.86114513]
[1693587630579,0.17207976,213.83,213.36,0.86114513]
[1693587630779,5.09515884,213.87,213.25,0.15301988]
[1693587630780,0.17207976,213.86,213.33,0.86114513]
[1693587631080,0.17207976,213.85,213.34,0.86113209]
[1693587631279,0.17207976,213.84,213.35,0.86113209]
[1693587631480,0.17207976,213.87,213.33,0.86113209]
[1693587631681,0.17207976,213.86,213.34,0.86113209]
[1693587631882,0.17207976,213.85,213.35,0.86113209]
[1693587632075,0.17207976,213.84,213.36,0.86113209]
[1693587632279,0.17207976,213.87,213.32,0.86113209]
[1693587632475,0.17207976,213.86,213.33,0.86112611]
[1693587632680,0.17207976,213.86,213.31,0.07650994]
[1693587632681,0.17207976,213.85,213.34,0.86112611]
[1693587632882,0.17207976,213.84,213.35,0.86112611]
[1693587633077,5.2672386,213.87,213.31,0.86112611]
[1693587633283,0.17207976,213.86,213.32,0.86112611]
[1693587633479,0.17207976,213.86,213.33,0.86112611]
[1693587633776,0.17207976,213.86,213.34,0.86112611]
[1693587633975,0.17207976,213.86,213.31,0.86112611]
[1693587634177,0.17207976,213.86,213.32,0.86112611]
[1693587634381,0.17207976,213.86,213.31,0.86112611]
[1693587634583,0.17207976,213.86,213.32,0.86112611]
[1693587634978,0.17207976,213.86,213.33,0.86112611]
[1693587635185,0.17207976,213.86,213.34,0.86112611]
[1693587635378,0.17207976,213.86,213.35,0.86112611]
[1693587635683,0.17207976,213.86,213.3,0.07650994]
[1693587635883,0.17207976,213.86,213.31,0.86113527]
[1693587637183,0.17207976,213.86,213.31,0.93764521]
[1693587637484,0.17207976,213.86,213.32,0.86113527]
[1693587639690,0.17207976,213.86,213.33,0.86113527]
[1693587639984,0.17207976,213.86,213.34,0.86113527]
[1693587640184,0.17207976,213.86,213.31,0.86113527]
[1693587640483,0.17207976,213.86,213.32,0.86113527]
[1693587640682,0.17207976,213.86,213.33,0.86113527]
[1693587640886,0.17207976,213.86,213.34,0.86113527]
[1693587641080,0.17207976,213.86,213.31,0.86113527]
[1693587641383,0.17207976,213.86,213.32,0.86113527]
[1693587641581,0.17207976,213.86,213.31,0.86113527]
[1693587641785,0.17207976,213.86,213.32,0.86113527]
[1693587641979,0.17207976,213.86,213.3,0.86113527]
[1693587642286,0.17207976,213.86,213.31,0.86113527]
[1693587643085,0.17207976,213.86,213.3,0.86113527]
[1693587643286,0.17207976,213.86,213.31,0.86113527]
[1693587643486,0.17207976,213.86,213.3,0.86113527]
[1693587643788,0.17207976,213.86,213.31,0.86113527]
[1693587643986,0.17207976,213.86,213.29,0.86113527]
[1693587644188,5.2672386,213.86,213.3,0.86113527]
[1693587644387,0.17207976,213.85,213.31,0.86113527]
[1693587644587,0.17207976,213.85,213.32,0.86113527]
[1693587644785,0.17207976,213.85,213.28,0.93764521]
[1693587644987,0.17207976,213.85,213.29,0.93764521]
[1693587645183,0.17207976,213.86,213.3,0.86113527]
[1693587645386,0.17207976,213.85,213.3,0.86113527]
[1693587645683,0.17207976,213.84,213.3,0.86113527]
[1693587646085,0.17207976,213.83,213.3,0.86113527]
[1693587646285,0.17207976,213.86,213.3,0.86113527]
[1693587646480,0.17207976,213.82,213.29,0.86113527]
[1693587646682,5.09515884,213.88,213.29,0.93764521]
[1693587646683,0.17207976,213.81,213.29,0.93764521]
[1693587646988,0.17207976,213.8,213.3,0.86113527]
[1693587647287,0.17207976,213.79,213.3,0.86113527]
[1693587647489,0.17207976,213.87,213.3,0.86113527]
[1693587647784,0.17207976,213.86,213.3,0.86113527]
[1693587647988,0.17207976,213.87,213.3,0.86113527]
[1693587648186,0.17207976,213.86,213.3,0.86113527]
[1693587648384,0.17207976,213.85,213.3,0.86113527]
[1693587648582,0.17207976,213.87,213.3,0.86113527]
[1693587648888,0.17207976,213.86,213.3,0.86113527]
[1693587649086,0.17207976,213.87,213.3,0.86113527]
[1693587649288,0.17207976,213.86,213.3,0.86113527]
[1693587649485,0.17207976,213.85,213.3,0.86113527]
[1693587649690,0.17207976,213.87,213.3,0.86113527]
[1693587649886,0.17207976,213.86,213.3,0.93764521]
[1693587650191,0.17207976,213.85,213.31,0.86113527]
[1693587650383,0.17207976,213.84,213.31,0.86113527]
[1693587650584,0.17207976,213.83,213.31,0.86113527]
[1693587650892,0.17207976,213.82,213.31,0.86113527]
[1693587651189,0.17207976,213.81,213.32,0.07650994]
[1693587651486,0.17207976,213.8,213.33,0.86113527]
[1693587651691,0.17207976,213.88,213.32,0.86113527]
[1693587651891,0.17207976,213.87,213.33,0.86113527]
[1693587652091,0.17207976,213.88,213.32,0.86113527]
[1693587652286,0.17207976,213.87,213.33,0.86113527]
[1693587652489,5.2672386,213.88,213.33,0.86113527]
[1693587652690,0.17207976,213.87,213.33,0.86113527]
[1693587653588,0.17207976,213.87,213.33,0.93764521]
[1693587653784,0.17207976,213.88,213.34,0.86113527]
[1693587654390,5.2672386,213.88,213.34,0.86113527]
[1693587654587,0.17207976,213.87,213.34,0.86113527]
[1693587655187,0.17207976,213.87,213.34,0.93764521]
[1693587655392,0.17207976,213.87,213.35,0.86113527]
[1693587656491,5.09515884,213.86,213.35,0.86113527]
[1693587656691,0.17207976,213.85,213.35,0.86113527]
[1693587657287,0.17207976,213.85,213.36,0.86113527]
[1693587657491,0.17207976,213.85,213.33,0.07650994]
[1693587657688,0.17207976,213.85,213.34,0.86114024]
[1693587658193,5.2672386,213.85,213.34,0.93765018]
[1693587658393,5.2672386,213.84,213.35,0.86114024]
[1693587658593,0.17207976,213.83,213.35,0.86114024]
[1693587659192,5.2672386,213.83,213.35,0.86114024]
[1693587659390,0.17207976,213.82,213.35,0.86114024]
[1693587660096,0.17207976,213.82,213.35,0.93765018]
[1693587660296,0.17207976,213.82,213.35,0.07650994]
[1693587660698,5.2672386,213.82,213.35,0.07650994]
[1693587660891,0.17207976,213.81,213.35,0.07650994]
[1693587661297,5.09515884,213.79,213.38,0.07650994]
[1693587661495,0.17207976,213.78,213.38,0.07650994]
[1693587662092,0.17207976,213.78,213.37,0.07650994]
[1693587662598,5.2672386,213.78,213.37,0.07650994]
[1693587662799,0.17207976,213.77,213.37,0.07650994]
[1693587663596,0.17207976,213.77,213.36,0.07650994]
[1693587663897,0.17207976,213.77,213.37,0.07650994]
[1693587665794,0.17207976,213.78,213.38,0.07650994]
[1693587666003,0.17207976,213.77,213.38,0.07650994]
[1693587666200,0.17207976,213.79,213.38,0.07650994]
[1693587666395,0.17207976,213.78,213.38,0.07650994]
[1693587666594,0.17207976,213.79,213.38,0.07650994]
[1693587666801,0.17207976,213.78,213.38,0.07650994]
[1693587667003,0.17207976,213.77,213.38,0.07650994]
[1693587667196,5.2672386,213.79,213.38,0.07650994]
[1693587667397,0.17207976,213.78,213.38,0.07650994]
[1693587668402,0.17207976,213.78,213.39,0.07650994]
[1693587668606,0.17207976,213.77,213.39,0.07650994]
[1693587668801,0.17207976,213.76,213.38,0.07650994]
[1693587669002,0.17207976,213.79,213.38,0.07650994]
[1693587669301,0.17207976,213.78,213.38,0.07650994]
[1693587669501,0.17207976,213.79,213.38,0.07650994]
[1693587669802,0.17207976,213.78,213.39,0.07650994]
[1693587669998,0.17207976,213.79,213.39,0.07650994]
[1693587670202,0.17207976,213.78,213.39,0.07650994]
[1693587670405,0.17207976,213.77,213.39,0.07650994]
[1693587670598,0.17207976,213.76,213.39,0.07650994]
[1693587670801,0.17207976,213.75,213.39,0.07650994]
[1693587671003,0.17207976,213.74,213.4,0.86091264]
[1693587671301,0.17207976,213.73,213.44,0.07650994]
[1693587671503,0.17207976,213.84,213.44,0.07650994]
[1693587671698,0.17207976,213.83,213.44,0.07650994]
[1693587671901,0.17207976,213.84,213.42,0.07650994]
[1693587672096,0.17207976,213.83,213.42,0.07650994]
[1693587672301,0.17207976,213.86,213.42,0.07650994]
[1693587673201,0.17207976,213.86,213.41,0.07650994]
[1693587673397,0.17207976,213.88,213.42,0.8608719]
[1693587673601,0.17207976,213.87,213.42,0.8608719]
[1693587673905,0.17207976,213.86,213.42,0.8608719]
[1693587674105,0.17207976,213.85,213.4,0.07650994]
[1693587674403,5.09515884,213.89,213.41,0.8609023]
[1693587674404,0.17207976,213.84,213.41,0.8609023]
[1693587674608,0.17207976,213.83,213.41,0.8609023]
[1693587674804,0.17207976,213.87,213.41,0.8609023]